[Event "FRA-ch Teams Top 16-A 2022"]
[Site "Chartres"]
[Date "2022.06.11"]
[Round "3.6"]
[White "Loiseau, Quentin"]
[Black "Guliyev, Namig"]
[Result "1/2-1/2"]
[ECO "D20"]
[WhiteElo "2445"]
[BlackElo "2547"]
[Annotator "TA"]
[PlyCount "57"]
[EventDate "2022.06.09"]
[EventType "team-tourn"]
[EventCountry "FRA"]
[SourceTitle "playchess.com"]
[Source "ChessBase"]
[SourceQuality "1"]
[TimeControl "40/5400+30:1800+30"]

{[%evp 9,57,24,27,52,65,50,46,61,60,57,57,64,58,67,62,50,52,44,49,41,102,45,51,0,28,0,21,37,61,46,53,54,93,73,98,57,78,65,89,56,58,43,28,0,0,0,0,0,0,47]} 1. d4 {[%emt 0:00:04]} d5 {[%emt 0:00:07]} 2. c4 {[%emt 0:00:15]} dxc4 {[%emt 0:00:07]} 3. e4 {[%emt 0:00:13]} b5 {[%emt 0:03:02]} 4. a4 {[%emt 0:00:45]} c6 {[%emt 0:00:08]} 5. axb5 {[%emt 0:00:16]} cxb5 {[%emt 0:00:07]} 6. Nc3 {[%emt 0:00:10][%cal Bb1c3,Bc3d5,Bd5c7][%mdl 32] D20: Queen's Gambit Accepted: 3 e3 and 3 e4.} Qb6 {[%emt 0:00:04]} 7. Nd5 {[%emt 0:00:25]} Qb7 {[%emt 0:00:07]} 8. Bf4 {[%emt 0:00:05] [#] Strongly threatening Nc7+. White is slightly better.} e5 $1 {[%emt 0:00:23]} 9. Bxe5 {[%emt 0:00:06] And now Ne2 would win.} Nd7 $1 {[%emt 0:00:09]} 10. Bf4 {[%emt 0:04:15] Black must now prevent Ne2.} Ngf6 {[%emt 0:02:18]} 11. Nc7+ {[%emt 0:04:31]} Kd8 {[%emt 0:00:53] aiming for ...Bb4+.} 12. Nxa8 {[%emt 0:00:17][%cal Of2f3] f3! is the strong threat. 0x0.00207b6676bddp-1022s more active pieces. The black rooks are badly placed.} Qxe4+ {[%emt 0:00:16]} 13. Ne2 {[%emt 0:00:05]} Qxa8 {[%emt 0:01:20]} 14. f3 {[%emt 0:00:35]} Bb4+ {[%emt 0:09:02]} (14... Nb6 $14) 15. Nc3 {[%emt 0:02:19] [#]} ({White should try} 15. Bd2 $16 Nd5 16. Nc3) 15... a5 $146 {[%emt 0:02:52]} ({Don't do} 15... Nd5 16. Bd2 $16) ({Predecessor:} 15... Re8+ 16. Be2 a5 17. O-O Qc6 18. Re1 Bxc3 19. bxc3 Nd5 20. Qd2 b4 21. Rxa5 Nxc3 {½-½ (71) Fodor,B (2120)-Dev,S (2243) Budapest 2021}) 16. Bd2 {[%emt 0:06:10]} (16. Be2 $14) 16... Qc6 {[%emt 0:03:33]} 17. Be2 {[%emt 0:09:45]} (17. Na2 $5 {[%cal Ra2b4]}) 17... Re8 {[%emt 0:05:29]} 18. O-O {[%emt 0:01:41]} a4 {[%emt 0:04:15]} 19. Ne4 {[%emt 0:30:13]} Bxd2 {[%emt 0:02:42]} 20. Qxd2 {[%emt 0:01:12]} ({Don't play} 20. Nxd2 Nd5 $11) 20... Qb6 {[%emt 0:00:11] [#]} (20... Nxe4 21. fxe4 Re7 22. e5 $18) 21. Kh1 $1 {[%emt 0:07:15]} h6 {[%emt 0:03:58]} 22. Nc3 {[%emt 0:09:10]} Ba6 {[%emt 0:03:13]} 23. Rfe1 {[%emt 0:04:14]} Re6 {[%emt 0:11:38]} 24. Rad1 {[%emt 0:05:00]} Bb7 {[%emt 0:03:14]} 25. d5 {[%emt 0:04:17]} Rd6 {[%emt 0:02:40]} 26. Qd4 {[%emt 0:03:23]} Qxd4 {[%emt 0:01:55] The position is equal.} 27. Rxd4 {[%emt 0:00:02]} Ba6 {[%emt 0:00:15]} 28. Bd1 {[%emt 0:04:02]} Nc5 {[%emt 0:10:58]} (28... b4 $11 29. Na2 (29. Nxa4 Rxd5 30. Rxd5 Nxd5 $11) 29... b3) 29. Bc2 {[%emt 0:00:05] Weighted Error Value: White=0.14 (very precise) /Black=0.08 (flawless)} 1/2-1/2

[Event "FRA-ch Teams Top 16-A 2022"]
[Site "Chartres"]
[Date "2022.06.11"]
[Round "3.7"]
[White "Maurizzi, Marc`Andria"]
[Black "Barbot, Pierre"]
[Result "1-0"]
[ECO "E14"]
[WhiteElo "2490"]
[BlackElo "2450"]
[Annotator "TA"]
[PlyCount "81"]
[EventDate "2022.06.09"]
[EventType "team-tourn"]
[EventCountry "FRA"]
[SourceTitle "playchess.com"]
[Source "ChessBase"]
[SourceQuality "1"]
[TimeControl "40/5400+30:1800+30"]

{[%evp 22,81,54,46,51,52,49,53,74,62,77,78,74,74,79,78,116,45,50,37,43,41,56,52,57,57,122,113,236,240,232,238,232,225,218,223,256,143,136,135,133,108,223,225,213,206,263,266,266,252,261,266,273,249,757,744,722,617,1486,1409,6736,1643]} 1. d4 {[%emt 0:00:04]} Nf6 {[%emt 0:00:04]} 2. c4 {[%emt 0:00:05]} e6 {[%emt 0:00:04]} 3. Nf3 {[%emt 0:00:16]} Bb4+ {[%emt 0:01:11]} 4. Nbd2 {[%emt 0:00:48]} O-O {[%emt 0:03:16]} 5. a3 {[%emt 0:00:13]} Bxd2+ {[%emt 0:00:03]} 6. Qxd2 {[%emt 0:05:24]} b6 {[%emt 0:00:43]} 7. e3 {[%emt 0:00:58]} Bb7 {[%emt 0:00:05]} 8. Be2 {[%emt 0:00:15]} d6 {[%emt 0:00:04]} 9. b4 {[%emt 0:00:54]} Nbd7 {[%emt 0:00:04]} 10. Bb2 {[%emt 0:00:04]} Ne4 {[%emt 0:03:01]} 11. Qc2 {[%emt 0:02:14]} c5 {[%emt 0:07:15]} 12. O-O {[%emt 0:12:48]} Qc7 {[%emt 0:00:07] E14: Queen's Indian: Classical Variation (4 e3).} 13. Rfd1 {[%emt 0:06:40] [#]} Nef6 $146 {[%emt 0:21:21]} ({Predecessor:} 13... Rad8 14. Rac1 f5 15. Ne1 Nef6 16. Nd3 Be4 17. f3 Bb7 18. Nf4 Rde8 19. d5 exd5 20. cxd5 {1-0 (38) Peev,P (2440)-Bjrzakov,A Pazardzik 1978}) 14. Bc3 {[%emt 0:09:15]} Rac8 {[%emt 0:06:30] White is slightly better.} 15. dxc5 {[%emt 0:04:55]} bxc5 {[%emt 0:00:04]} 16. b5 {[%emt 0:03:46]} Ne4 {[%emt 0:00:05]} 17. Bb2 {[%emt 0:06:56]} f5 {[%emt 0:04:22]} 18. Nd2 {[%emt 0:15:35]} d5 {[%emt 0:03:48]} 19. f3 {[%emt 0:08:12]} (19. cxd5 $16 exd5 20. Nxe4 fxe4 21. Bg4) 19... Nd6 $14 {[%emt 0:06:54]} 20. f4 {[%emt 0:02:52]} Nb6 {[%emt 0:04:36]} 21. Be5 {[%emt 0:01:37] This bishop pair is nice.} Qe7 {[%emt 0:02:14]} 22. a4 {[%emt 0:00:55][%cal Ba3a4,Ba4a5][%mdl 32]} Rfd8 {[%emt 0:11:46]} 23. cxd5 {[%emt 0:04:29]} exd5 {[%emt 0:00:08]} (23... Nxd5 $14 24. Qb3 Nf6) 24. a5 $16 {[%emt 0:01:51] White is more active.} Nbc4 {[%emt 0:00:04]} (24... Nd7 $16 {was necessary.}) 25. Nxc4 $18 {[%emt 0:00:37]} Nxc4 {[%emt 0:00:04]} 26. Bxc4 {[%emt 0:00:09]} (26. Qxf5 Nxe3 27. Qh3 d4 $11) 26... dxc4 {[%emt 0:00:04]} 27. Qxf5 {[%emt 0:02:08]} (27. Qxc4+ $6 Qf7 28. Qe2 c4 29. Rxd8+ Rxd8) 27... c3 {[%emt 0:05:29]} 28. Qc2 {[%emt 0:02:52] Against Rd2} Qe6 {[%emt 0:00:03]} 29. Rxd8+ {[%emt 0:03:40]} (29. Bxc3 Qxe3+ 30. Kh1 Qxf4 $11) (29. Qxc3 $18 {Threatens to win with Qc2.} Qg4 30. Rd2 (30. Qc2 Rxd1+ 31. Rxd1 Bxg2 $14)) 29... Rxd8 $16 {[%emt 0:00:05]} 30. Rd1 {[%emt 0:01:31] Prevents Rd2.} ({But not} 30. Qxc3 Bxg2 31. f5 (31. Kxg2 Qg4+ 32. Kf1 Qh3+ 33. Kf2 Qh4+ 34. Kg2 Qg4+ 35. Kf1 Qh3+ 36. Kg1 Qg4+ 37. Kf2 Qh4+ 38. Kf3 Qh3+ 39. Ke2 Qh5+ 40. Kf2 Qh4+ $11) 31... Qd5 $14) (30. Bxc3 Qxe3+ 31. Kh1 Rd3 $11) 30... Rxd1+ {[%emt 0:07:25]} 31. Qxd1 {[%emt 0:00:19][%mdl 4096] Endgame KQB-KQB} Be4 {[%emt 0:00:03]} (31... Qa2 $2 32. Qd8+ Kf7 33. Qd7+ Kg6 34. Qxg7+ Kf5 35. Qxh7+ Ke6 36. Qg8+ Ke7 37. Qxa2 $18) (31... h5 $16) 32. Qd8+ $18 {[%emt 0:02:09]} Kf7 {[%emt 0:00:03]} 33. Bxc3 {[%emt 0:01:10]} Qg4 {[%emt 0:02:13][%csl Ge4][%cal Rg4g2] [#]} 34. Qc7+ {[%emt 0:00:11]} Kg8 {[%emt 0:00:41][%csl Ge4][%cal Rg4g2]} 35. Qb8+ {[%emt 0:00:05]} Kf7 {[%emt 0:00:02][%csl Ge4][%cal Rg4g2]} 36. Qxa7+ {[%emt 0:00:03]} Ke6 {[%emt 0:00:11][%csl Ge4][%cal Rg4g2]} 37. f5+ $1 {[%emt 0:01:24]} ({Not} 37. Qxg7 Qd1+ 38. Kf2 Qc2+ 39. Kg3 (39. Kg1 Qd1+ 40. Kf2 Qc2+ 41. Kg3 Qxg2+ 42. Kh4 Qxh2+ 43. Kg4 Qg2+ 44. Kh4 Qh2+ 45. Kg4 Qg2+ 46. Kh4 Qh2+ $11) 39... Qxg2+ 40. Kh4 Qxh2+ 41. Kg4 Qg2+ 42. Kh4 Qh2+ 43. Kg4 Qg2+ 44. Kh4 Qh2+ $11) 37... Bxf5 $2 {[%emt 0:00:22]} (37... Qxf5 38. Qxg7 Qg6 39. Qxg6+ hxg6) 38. Qxc5 {[%emt 0:01:31] [#] Hoping for a6. White is clearly winning.} Qd1+ {[%emt 0:01:17]} 39. Kf2 {[%emt 0:00:01] aiming for Qe5+.} Qc2+ {[%emt 0:00:06]} 40. Kg3 {[%emt 0:00:05] Strongly threatening Qc4+.} Be4 {[%emt 0:00:21]} 41. Qc8+ {[%emt 0:30:05] Weighted Error Value: White=0.09 (flawless) /Black=0.30} 1-0

[Event "FRA-ch Teams Top 16-A 2022"]
[Site "Chartres"]
[Date "2022.06.11"]
[Round "3.8"]
[White "Milliet, Sophie"]
[Black "Tomasi, Elise"]
[Result "1-0"]
[ECO "C43"]
[WhiteElo "2410"]
[BlackElo "2017"]
[Annotator "TA"]
[PlyCount "89"]
[EventDate "2022.06.09"]
[EventType "team-tourn"]
[EventCountry "FRA"]
[SourceTitle "playchess.com"]
[Source "ChessBase"]
[SourceQuality "1"]
[TimeControl "40/5400+30:1800+30"]

{[%evp 16,89,1,0,0,-36,14,0,0,0,0,0,154,39,163,172,144,97,128,124,100,63,106,62,50,36,35,35,183,188,161,100,100,110,110,77,222,183,175,189,164,160,161,151,432,432,399,162,290,275,273,252,492,414,461,333,12839,12836,12834,0,12839,12835,12835,12835,12836,12836,12837,12837,12837,12837,12844,12844,12845,12839,29997,29998]} 1. e4 {[%emt 0:00:03]} e5 {[%emt 0:00:13]} 2. Nf3 {[%emt 0:00:05]} Nf6 {[%emt 0:00:28]} 3. d4 {[%emt 0:00:20]} Nxe4 {[%emt 0:00:41]} 4. Bd3 {[%emt 0:00:07]} d5 {[%emt 0:00:28]} 5. Nxe5 {[%emt 0:00:11]} Bd6 {[%emt 0:00:50]} 6. O-O {[%emt 0:01:53]} O-O {[%emt 0:01:24]} 7. Nc3 {[%emt 0:00:59]} Nxc3 {[%emt 0:06:55]} 8. bxc3 {[%emt 0:01:11]} Nd7 {[%emt 0:04:19]} 9. Re1 {[%emt 0:16:58]} c5 {[%emt 0:29:19] C43: Petroff Defence: 3 d4.} 10. Bf4 {[%emt 0:24:16][%cal Oe5f7] [#]} Qc7 $146 {[%emt 0:11:29]} (10... c4 $15 11. Nxd7 Qxd7) ({Predecessor:} 10... c4 11. Bf5 Nf6 12. Bxc8 Qxc8 13. Re3 Qf5 14. Bg3 Ne4 15. Qb1 Nxg3 16. hxg3 f6 17. g4 {1-0 (28) Carlsson,U-Schaufelberger,H ICCF corr 1973}) 11. Re3 {[%emt 0:14:02][%cal Od3h7]} (11. Qh5 Nf6 12. Qh4 c4 $17) 11... Nf6 {[%emt 0:13:37] The position is equal.} 12. dxc5 $1 {[%emt 0:11:24]} Qxc5 {[%emt 0:02:28][%cal Of6g4]} 13. Qf3 {[%emt 0:00:18] Inhibits Ng4.} Bxe5 $2 {[%emt 0:04:10]} (13... Re8 $11) 14. Rxe5 {[%emt 0:01:57]} (14. Bxe5 $16 {[%cal Of3f6] Qxf6! would kill now.} Ng4 15. Bd4) 14... Be6 {[%emt 0:01:54]} (14... Bg4 $14 15. Qg3 Bh5) 15. Rg5 $1 $18 {[%emt 0:02:56][%cal Og5g7] Strongly threatening Rxg7+!} Ne8 {[%emt 0:09:24]} 16. c4 {[%emt 0:03:13] 0x0.00206a5f99d3dp-1022s more active pieces. The black rooks are badly placed.} (16. Re1 $142 {Qh5 is the strong threat.} g6 17. Be5) 16... f6 {[%emt 0:03:25] [#]} 17. Qh5 {[%emt 0:03:50]} f5 {[%emt 0:01:22]} (17... fxg5 $2 18. Bxh7+ Kh8 19. Bg6+ Kg8 20. Qh7#) 18. Qe2 {[%emt 0:03:11]} (18. Bxf5 $6 Bxf5 19. Rxf5 Nf6 $11) 18... Rf6 {[%emt 0:01:33][%cal Rd5c4]} 19. Be5 {[%emt 0:02:31]} Rg6 {[%emt 0:00:50]} 20. Rxg6 {[%emt 0:03:10]} hxg6 {[%emt 0:00:02]} 21. Bb2 {[%emt 0:03:38] This bishop pair is nice.} Kf7 {[%emt 0:02:24]} (21... Qc6 $14 22. c5 Bd7) 22. Re1 {[%emt 0:00:27]} Qc6 {[%emt 0:00:25][%cal Rd5c4]} 23. cxd5 {[%emt 0:01:19]} (23. c5 $18 {aiming for Bb5.} a6 24. Bd4) 23... Qxd5 $16 {[%emt 0:00:37]} 24. c4 {[%emt 0:00:05]} Qc6 {[%emt 0:00:27]} 25. c5 {[%emt 0:00:14]} a6 {[%emt 0:00:22]} (25... Nf6 $16) 26. Bc4 {[%emt 0:00:55]} Bxc4 {[%emt 0:01:20]} 27. Qxc4+ {[%emt 0:00:01]} Kf8 {[%emt 0:00:14]} 28. h4 {[%emt 0:03:29]} Rd8 {[%emt 0:01:15] [#]} 29. Re6 {[%emt 0:01:05]} Rd1+ $2 {[%emt 0:01:12]} (29... Qd5 $16 {keeps fighting.} 30. Qxd5 Rxd5) 30. Kh2 $18 {[%emt 0:00:01]} Qc7+ {[%emt 0:00:46]} 31. Be5 {[%emt 0:00:14]} (31. g3 $142) 31... Qf7 {[%emt 0:00:01]} (31... Qd8 $142 32. Rxg6 (32. c6 bxc6 33. Rxg6 Qd5 $16) 32... Re1) 32. c6 {[%emt 0:00:56]} bxc6 {[%emt 0:01:16]} 33. Qxc6 $40 {[%emt 0:00:13][%mdl 128] Black is in trouble.} g5 $2 {[%emt 0:00:32] [#]} (33... Qd7 {was worth a try.} 34. Qc5+ (34. Qxa6 Qd8 $16) 34... Kf7 35. Rxa6 Kg8) 34. Bxg7+ $1 {[%emt 0:01:43][%mdl 512]} Kxg7 {[%emt 0:00:39]} 35. Rxe8 {[%emt 0:00:06] Hoping for Qc3+.} gxh4 $2 {[%emt 0:00:53][%mdl 4096] Endgame KQR-KQR} (35... Rd4 36. Qc3 Qxe8 37. Qxd4+ Kh7 38. Qa7+ (38. hxg5 Qh5+ 39. Kg1 Qxg5 $18) 38... Kg8 39. Qxa6 (39. hxg5 Qh5+ 40. Kg1 Qd1+ 41. Kh2 Qh5+ 42. Kg3 Qg4+ 43. Kh2 Qh5+ $11) 39... gxh4 40. Qc4+ Kh7 41. Qxh4+ Kg6) 36. Qc3+ {[%emt 0:00:56]} Kg6 {[%emt 0:00:00]} 37. Qc6+ {[%emt 0:00:23]} Kg7 $1 {[%emt 0:00:47]} 38. Rc8 {[%emt 0:00:18]} Rd7 {[%emt 0:00:33]} 39. Qc3+ {[%emt 0:00:08]} Kg6 {[%emt 0:00:29]} 40. Qh8 {[%emt 0:00:10]} Qh7 {[%emt 0:00:50]} 41. Rc6+ {[%emt 0:31:27]} Kh5 {[%emt 0:30:35]} 42. Qe8+ {[%emt 0:00:00]} Kg5 {[%emt 0:00:00]} 43. Qe3+ {[%emt 0:00:00]} Kh5 {[%emt 0:00:00]} 44. Qf4 {[%emt 0:00:00] White wants to mate with Kh3.} Rf7 {[%emt 0:00:00]} 45. Kh3 {[%emt 0:00:00] Weighted Error Value: White=0.38/Black=0.90} 1-0

[Event "FRA-ch Teams Top 16-A 2022"]
[Site "Chartres"]
[Date "2022.06.11"]
[Round "3.9"]
[White "Sochacki, Christophe"]
[Black "Piorun, Kacper"]
[Result "1/2-1/2"]
[ECO "C47"]
[WhiteElo "2493"]
[BlackElo "2635"]
[Annotator "TA"]
[PlyCount "44"]
[EventDate "2022.06.09"]
[EventType "team-tourn"]
[EventCountry "FRA"]
[SourceTitle "playchess.com"]
[Source "ChessBase"]
[SourceQuality "1"]
[TimeControl "40/5400+30:1800+30"]

{[%evp 21,22,0,19]} 1. e4 {[%emt 0:00:40]} e5 {[%emt 0:00:35]} 2. Nf3 {[%emt 0:00:09]} Nc6 {[%emt 0:00:05]} 3. d4 {[%emt 0:00:14]} exd4 {[%emt 0:00:06]} 4. Nxd4 {[%emt 0:00:04]} Nf6 {[%emt 0:02:57]} 5. Nc3 {[%emt 0:00:13]} Bb4 {[%emt 0:00:42]} 6. Nxc6 {[%emt 0:00:05]} bxc6 {[%emt 0:00:04]} 7. Bd3 {[%emt 0:00:04]} d5 {[%emt 0:00:21]} 8. exd5 {[%emt 0:00:05]} O-O {[%emt 0:00:09]} 9. O-O {[%emt 0:00:04]} cxd5 {[%emt 0:00:15]} 10. Bg5 {[%emt 0:02:30]} c6 {[%emt 0:02:00]} 11. Qf3 {[%emt 0:00:16]} h6 {[%emt 0:01:13] [#] 11...Bd6 is the modern continuation.} {Predecessor:} 12. Bxf6 $146 {C47: Scotch Four Knights and Four Knights with 4 g3.} Qxf6 13. Qxf6 gxf6 14. Ne2 Rb8 15. Ng3 Bd6 16. b3 Re8 17. Nf5 Bxf5 18. Bxf5 Be5 19. Rad1 Rbd8 20. Rd3 Bc7 21. Rc3 Rd6 22. Rh3 Kg7 {1-0 (57) Dubov,D (2711)-Alekseenko,K (2698) Chess.com INT 2022} 1/2-1/2

[Event "FRA-ch Teams Top 16-A 2022"]
[Site "Chartres"]
[Date "2022.06.11"]
[Round "3.10"]
[White "Malakhov, Vladimir"]
[Black "Dourerassou, Jonathan"]
[Result "1-0"]
[ECO "E05"]
[WhiteElo "2652"]
[BlackElo "2446"]
[Annotator "TA"]
[PlyCount "89"]
[EventDate "2022.06.09"]
[EventType "team-tourn"]
[EventCountry "FRA"]
[SourceTitle "playchess.com"]
[Source "ChessBase"]
[SourceQuality "1"]
[TimeControl "40/5400+30:1800+30"]

{[%evp 14,89,27,29,55,54,45,45,45,45,52,52,50,45,48,33,39,51,42,37,57,45,38,47,38,23,46,34,52,26,33,37,85,92,87,83,236,235,480,464,487,477,477,173,185,185,168,97,112,100,170,81,497,475,603,612,580,569,6219,6211,6193,6187,6079,5173,6327,2083,29984,29985,29985,29986,29986,29987,29987,29988,29990,29991,29991,29992]} 1. c4 {[%emt 0:00:08]} e6 {[%emt 0:00:10]} 2. Nf3 {[%emt 0:00:08]} Nf6 {[%emt 0:00:06]} 3. g3 {[%emt 0:00:14]} Be7 {[%emt 0:00:18]} 4. Bg2 {[%emt 0:00:13]} O-O {[%emt 0:01:02]} 5. O-O {[%emt 0:00:15]} d5 {[%emt 0:00:07]} 6. d4 {[%emt 0:00:10]} dxc4 {[%emt 0:00:12]} 7. Qc2 {[%emt 0:00:09]} Nc6 {[%emt 0:07:50]} 8. Qxc4 {[%emt 0:01:35]} Bd6 {[%emt 0:00:07] E05: Open Catalan: 5 Nf3 Be7.} 9. Nc3 {[%emt 0:01:56]} e5 {[%emt 0:00:27]} 10. dxe5 {[%emt 0:00:16]} Nxe5 {[%emt 0:00:11] White is slightly better.} 11. Nxe5 {[%emt 0:00:07]} Bxe5 {[%emt 0:00:07] [#]} 12. Rd1 $146 {[%emt 0:00:13]} ({Predecessor:} 12. Bf4 Bxf4 13. Qxf4 c6 14. e4 Be6 15. e5 Nd7 16. Qe3 Qa5 17. f4 Rae8 18. Rad1 {½-½ (67) Iljushin,A (2461)-Dourerassou,J (2477) Chess.com INT 2021}) 12... Qe7 {[%emt 0:00:40]} 13. Be3 $1 {[%emt 0:00:51]} Be6 {[%emt 0:10:22]} 14. Qb5 {[%emt 0:01:09]} Bxc3 {[%emt 0:00:15]} 15. bxc3 {[%emt 0:00:07] Strongly threatening Bc5.} c6 {[%emt 0:00:06]} 16. Bc5 {[%emt 0:15:26] A strong pair of Bishops.} Qc7 {[%emt 0:01:10]} 17. Qb4 {[%emt 0:00:20]} Rfe8 {[%emt 0:04:06]} 18. e4 {[%emt 0:03:11] Inhibits Nd5.} Qc8 {[%emt 0:07:22]} 19. e5 {[%emt 0:02:14]} Nd5 {[%emt 0:01:27]} 20. Qd4 {[%emt 0:00:06]} Nb6 {[%emt 0:07:24]} 21. f4 {[%emt 0:04:57]} Rd8 {[%emt 0:21:18]} 22. Bd6 {[%emt 0:06:21]} Bd5 {[%emt 0:00:31] [#]} (22... Nc4 $14) 23. Bf1 $1 $16 {[%emt 0:05:21] White is more active.} Qe6 {[%emt 0:10:32]} 24. c4 {[%emt 0:25:24]} Bxc4 $2 {[%emt 0:11:13]} (24... Bf3 $16 {was necessary.}) 25. f5 $1 $18 {[%emt 0:00:27]} Qd5 {[%emt 0:00:08]} (25... c5 {keeps fighting.}) 26. Qg4 {[%emt 0:07:31]} h5 {[%emt 0:03:47]} 27. Qf4 {[%emt 0:00:25]} Qb5 {[%emt 0:00:42]} 28. f6 $2 {[%emt 0:01:45]} (28. a4 Qa5 29. Bxc4 Rxd6 30. Bxf7+ (30. Rxd6 Qc5+ 31. Qf2 Qxf2+ 32. Kxf2 Nxc4 $18) 30... Kxf7 31. Rxd6 Qc5+ 32. Kh1) 28... Rxd6 {[%emt 0:08:16]} (28... Bxf1 {is a self mate.} 29. Qg5) 29. Rxd6 $40 {[%emt 0:00:22][%mdl 128] And now Qg5 would win. White goes for the king.} ({Much less strong is} 29. exd6 Bxf1 30. Qxf1 Qe5 $16) 29... Qc5+ {[%emt 0:00:30] [#]} 30. Kh1 {[%emt 0:02:09]} (30. Kg2 $1 $18 Bd5+ 31. Kh3) 30... Bd5+ $16 {[%emt 0:00:14]} 31. Bg2 {[%emt 0:00:06]} Bxg2+ {[%emt 0:00:06]} 32. Kxg2 {[%emt 0:00:11]} Nd5 $2 {[%emt 0:00:09][%mdl 8192]} (32... Nc4 $16) 33. Qg5 $1 $18 {[%emt 0:02:05][%csl Gf6,LRg7,LRh5][%cal Rg5g7]} g6 {[%emt 0:01:56]} 34. Re1 {[%emt 0:01:41] Against Ne3+. Intending Qh6 and mate.} ({Weaker is} 34. Qh6 Ne3+ 35. Kh3 Nf5 $17) 34... Qc2+ {[%emt 0:02:52]} 35. Kh3 {[%emt 0:00:08] Qh6 would kill now.} Nc7 {[%emt 0:00:43]} 36. Qh6 {[%emt 0:03:48][%csl Gf6][%cal Rh6g7]} Ne8 {[%emt 0:00:07] [#] Inhibits Qg7+.} 37. e6 $1 {[%emt 0:00:55][%cal Be5e6,Be6e7][%mdl 32]} Qf5+ {[%emt 0:01:04]} 38. Kg2 {[%emt 0:00:05] White wants to mate with exf7+.} Qc2+ {[%emt 0:00:54]} 39. Kh1 {[%emt 0:00:29]} (39. Rd2 $142 Qxd2+ 40. Qxd2 Nxf6 41. Qb2) 39... Qxa2 {[%emt 0:00:55] [#]} 40. e7 $1 {[%emt 0:01:15] White mates.} Qf2 {[%emt 0:00:27]} 41. Qf8+ {[%emt 0:34:51][%mdl 64] Deflection} Kh7 {[%emt 0:01:24]} 42. Qxf7+ {[%emt 0:00:00]} Kh6 {[%emt 0:00:07]} 43. Rde6 {[%emt 0:00:00]} h4 {[%emt 0:01:16]} 44. Qf8+ {[%emt 0:00:00]} Kh7 {[%emt 0:00:06]} 45. f7 {[%emt 0:00:00] Weighted Error Value: White=0.15 (very precise) /Black=0.51} 1-0